fUSD/lending_fUSD_20260217
["ID","MTS","AMOUNT","RATE_DAILY","PERIOD"]
[405854881,1771363846495,-1546.47,0.00013698,2]
[405854882,1771363846505,-1546.47,0.00013698,2]
[405854883,1771363846514,-1546.47,0.00013698,2]
[405854884,1771363846524,-1546.47,0.00013698,2]
[405854885,1771363846534,-1546.47,0.00013698,2]
[405854886,1771363846543,-1546.47,0.00013698,2]
[405854887,1771363846553,-1546.47,0.00013698,2]
[405854888,1771363846562,-1546.47,0.00013698,2]
[405854890,1771363846571,-1546.47,0.00013698,2]
[405854891,1771363846580,-1546.47,0.00013698,2]
[405854892,1771363846590,-1546.47,0.00013698,2]
[405854893,1771363846599,-1546.47,0.00013698,2]
[405854894,1771363846608,-1546.47,0.00013698,2]
[405854895,1771363846617,-1546.47,0.00013698,2]
[405854897,1771363846627,-516.5,0.00013698,2]
[405854899,1771363846637,-516.5,0.00013698,2]
[405854901,1771363846646,-516.5,0.00013698,2]
[405854903,1771363846656,-516.5,0.00013698,2]
[405854905,1771363846665,-516.5,0.00013698,2]
[405854907,1771363846674,-516.5,0.00013698,2]
[405854909,1771363846684,-516.5,0.00013698,2]
[405854911,1771363846693,-516.5,0.00013698,2]
[405854913,1771363846703,-516.5,0.00013698,2]
[405854914,1771363846712,-516.5,0.00013698,2]
[405854916,1771363846722,-516.5,0.00013698,2]
[405854919,1771363846732,-516.5,0.00013698,2]
[405854921,1771363846742,-516.5,0.00013698,2]
[405854923,1771363846751,-516.5,0.00013698,2]
[405854924,1771363846760,-500.0,0.00013698,2]
[405854926,1771363846769,-516.5,0.00013698,2]
[405854928,1771363846779,-500.0,0.00013698,2]
[405854930,1771363846788,-516.5,0.00013698,2]
[405854933,1771363846798,-500.0,0.00013698,2]
[405854934,1771363846807,-516.5,0.00013698,2]
[405854936,1771363846817,-500.0,0.00013698,2]
[405854938,1771363846826,-516.5,0.00013698,2]
[405854940,1771363846835,-500.0,0.00013698,2]
[405854942,1771363846846,-494.24526323,0.00013698,2]
[405854945,1771363846855,-500.0,0.00013698,2]
[405854946,1771363846864,-500.0,0.00013698,2]
[405854949,1771363846873,-500.0,0.00013698,2]
[405854950,1771363846883,-191.17661539,0.00013698,2]
[405854952,1771363846892,-500.0,0.00013698,2]
[405854954,1771363846901,-500.0,0.00013698,2]
[405854956,1771363846913,-500.0,0.00013698,2]
[405854958,1771363846922,-500.0,0.00013698,2]
[405854961,1771363846932,-500.0,0.00013698,2]
[405854963,1771363846941,-500.0,0.00013698,2]
[405854965,1771363846951,-500.0,0.00013698,2]
[405854967,1771363846960,-500.0,0.00013698,2]
[405854969,1771363846970,-500.0,0.00013698,2]
[405854971,1771363846979,-500.0,0.00013698,2]
[405854973,1771363846989,-500.0,0.00013698,2]
[405854975,1771363846997,-307.56,0.00013698,2]
[405854977,1771363847007,-500.0,0.00013698,2]
[405854979,1771363847016,-500.0,0.00013698,2]
[405854981,1771363847025,-500.0,0.00013698,2]
[405854983,1771363847035,-505.58518338,0.00013698,2]
[405854986,1771363847045,-500.0,0.00013698,2]
[405854987,1771363847055,-500.0,0.00013698,2]
[405854989,1771363847064,-500.0,0.00013698,2]
[405854991,1771363847074,-500.0,0.00013698,2]
[405854993,1771363847083,-500.0,0.00013698,2]
[405854995,1771363847092,-474.03942024,0.00013698,2]
[405854997,1771363847102,-4479.21,0.00013699,2]
[405854999,1771363847111,-3936.54,0.00013699,2]
[405855001,1771363847120,-151.02878078,0.00013699,2]
[405855003,1771363847130,-503.8182606,0.00013816,2]
[405855005,1771363847140,-2000.0,0.00013816,2]
[405855007,1771363847150,-2000.0,0.00013816,2]
[405855009,1771363847160,-2000.0,0.00013816,2]
[405855011,1771363847170,-2000.0,0.00013816,2]
[405855013,1771363847180,-2000.0,0.00013816,2]
[405855015,1771363847190,-226.6191256,0.00013816,2]
[405855018,1771363847201,-2000.0,0.00013816,2]
[405855019,1771363847211,-2000.0,0.00013816,2]
[405855022,1771363847222,-335.00019172,0.00013873,2]
[405855024,1771363847233,-500.0,0.00013873,2]
[405855026,1771363847248,-500.0,0.00013873,2]
[405855028,1771363847264,-500.0,0.00013873,2]
[405855029,1771363847274,-500.0,0.00013873,2]
[405855031,1771363847284,-500.0,0.00013873,2]
[405855034,1771363847296,-500.0,0.00013873,2]
[405855036,1771363847308,-500.0,0.00013873,2]
[405855037,1771363847318,-500.0,0.00013873,2]
[405855039,1771363847329,-500.0,0.00013873,2]
[405855042,1771363847340,-500.0,0.00013873,2]
[405855044,1771363847350,-500.0,0.00013873,2]
[405855046,1771363847361,-500.0,0.00013873,2]
[405855048,1771363847370,-500.0,0.00013873,2]
[405855050,1771363847382,-500.0,0.00013873,2]
[405855052,1771363847394,-500.0,0.00013873,2]
[405855054,1771363847404,-501.23450591,0.00013873,2]
[405855056,1771363847414,-161.95965132,0.00013873,2]
[405855058,1771363847424,-500.0,0.00013873,2]
[405855060,1771363847436,-500.0,0.00013873,2]
[405855062,1771363847446,-500.0,0.00013873,2]
[405855064,1771363847456,-500.0,0.00013873,2]
[405855065,1771363847465,-500.0,0.00013873,2]
[405855066,1771363847475,-163.87964352,0.00013873,2]
[405855067,1771363847486,-500.0,0.00013873,2]
[405855069,1771363847495,-161.87499248,0.00013873,2]
[405855071,1771363847505,-500.0,0.00013873,2]
[405855073,1771363847516,-523.64780308,0.00013873,2]
[405855075,1771363847526,-162.40112722,0.00013873,2]
[405855077,1771363847535,-500.0,0.00013873,2]
[405855079,1771363847545,-500.0,0.00013873,2]
[405855082,1771363847556,-161.02829907,0.00013873,2]
[405855084,1771363847567,-500.0,0.00013873,2]
[405855086,1771363847576,-501.14207764,0.00013873,2]
[405855088,1771363847586,-500.0,0.00013873,2]
[405855090,1771363847596,-500.0,0.00013873,2]
[405855092,1771363847605,-186.11515271,0.00013873,2]
[405855094,1771363847615,-525.66819458,0.00013873,2]
[405855096,1771363847624,-500.0,0.00013873,2]
[405855098,1771363847635,-500.29634492,0.00013873,2]
[405855100,1771363847645,-500.0,0.00013873,2]
[405855102,1771363847655,-505.14943602,0.00013873,2]
[405855104,1771363847665,-501.43225284,0.00013873,2]
[405855106,1771363847676,-500.0,0.00013873,2]
[405855108,1771363847686,-500.0,0.00013873,2]
[405855110,1771363847696,-436.04334629,0.00013873,2]
[405855112,1771363847707,-500.93096914,0.00013873,2]
[405855114,1771363847717,-500.0,0.00013873,2]
[405855116,1771363847727,-500.0,0.00013873,2]
[405855119,1771363847737,-559.34470409,0.00013873,2]
[405855120,1771363847747,-500.0,0.00013873,2]
[405855121,1771363847757,-514.27467488,0.00013873,2]
[405855122,1771363847767,-160.29464371,0.00013873,2]
[405855123,1771363847776,-500.0,0.00013873,2]
[405855124,1771363847786,-377.76526068,0.00013873,2]
[405855125,1771363847796,-569.45122683,0.00013873,2]
[405855126,1771363847806,-170.20434449,0.00013873,2]
[405855127,1771363847815,-550.905089,0.00013873,2]
[405855128,1771363847825,-500.0,0.00013873,2]
[405855129,1771363847834,-285.23122629,0.00013873,2]
[405855130,1771363847844,-500.0,0.00013873,2]
[405855131,1771363847854,-500.0,0.00013882,2]
[405855132,1771363847864,-200.0,0.00013882,2]
[405855133,1771363847874,-500.0,0.00013905,2]
[405855134,1771363847885,-1758.79423202,0.00013925,2]
[405855135,1771363847895,-11813.90255413,0.00013925,2]
[405855136,1771363847905,-836.17998717,0.00013925,2]
[405855137,1771363847915,-1009.20002581,0.0001394,2]
[405855138,1771363847925,-1000.0,0.0001398,2]
[405855139,1771363847935,-1500.0,0.00014,2]
[405855140,1771363847946,-189.72,0.00014028,2]
[405855141,1771363847956,-500.0,0.00014179,2]
[405855142,1771363847966,-428.27570222,0.00014198,2]
[405855143,1771363847977,-4609.0,0.000142,2]
[405855144,1771363847987,-1066.36814864,0.0001421,2]
[405855145,1771363847998,-2500.0,0.00014364,2]
[405855146,1771363848008,-2500.0,0.00014364,2]
[405855147,1771363848018,-1464.93718194,0.00014364,2]
[405855148,1771363848028,-2238.87048767,0.00014364,2]
[405855149,1771363848038,-2500.0,0.00014364,2]
[405855150,1771363848048,-1506.4295813,0.00014364,2]
[405855151,1771363848058,-691.88472966,0.00014364,2]
[405855152,1771363848068,-4479.21,0.00014384,2]
[405855153,1771363848078,-10349.13153648,0.0001439,2]
[405855154,1771363848087,-528.4390448,0.0001442,2]
[405855155,1771363848097,-500.0,0.0001442,2]
[405855156,1771363848107,-500.0,0.0001442,2]
[405855157,1771363848117,-502.22718587,0.00014421,2]
[405855158,1771363848127,-1000.0,0.00014421,2]
[405855159,1771363848138,-1001.35605949,0.00014421,2]
[405855160,1771363848148,-1000.0,0.00014421,2]
[405855161,1771363848158,-1000.0,0.00014421,2]
[405855162,1771363848168,-501.86536618,0.00014421,2]
[405855163,1771363848178,-1000.0,0.00014421,2]
[405855164,1771363848188,-504.09468333,0.00014421,2]
[405855165,1771363848198,-1009.85751715,0.00014421,2]
[405855166,1771363848208,-1000.0,0.00014421,2]
[405855167,1771363848218,-1000.0,0.00014421,2]
[405855168,1771363848228,-1000.0,0.00014421,2]
[405855169,1771363848238,-651.60051968,0.00014421,2]
[405855170,1771363848248,-565.44208777,0.00014421,2]
[405855171,1771363848258,-1000.0,0.00014421,2]
[405855172,1771363848270,-1000.0,0.00014421,2]
[405855173,1771363848280,-502.68727614,0.00014421,2]
[405855174,1771363848294,-1000.0,0.00014421,2]
[405855175,1771363848305,-504.64635869,0.00014421,2]
[405855176,1771363848315,-1000.0,0.00014421,2]
[405855177,1771363848325,-1009.6821238,0.00014421,2]
[405855178,1771363848337,-1000.0,0.00014421,2]
[405855179,1771363848347,-1000.0,0.00014421,2]
[405855180,1771363848359,-1000.0,0.00014421,2]
[405855181,1771363848368,-1000.0,0.00014421,2]
[405855182,1771363848379,-1000.0,0.00014421,2]
[405855183,1771363848390,-1000.0,0.00014421,2]
[405855184,1771363848399,-1002.86775924,0.00014421,2]
[405855185,1771363848410,-502.80271569,0.00014421,2]
[405855186,1771363848420,-1000.0,0.00014421,2]
[405855187,1771363848431,-1000.0,0.00014421,2]
[405855188,1771363848441,-1000.0,0.00014421,2]
[405855189,1771363848451,-1000.0,0.00014421,2]
[405855190,1771363848461,-1000.0,0.00014421,2]
[405855191,1771363848470,-1000.0,0.00014421,2]
[405855192,1771363848480,-1000.0,0.00014421,2]
[405855193,1771363848491,-200.0,0.0001443,2]
[405855194,1771363848502,-500.0,0.00014453,2]
[405855195,1771363848512,-5019.02576734,0.00014492,2]
[405855196,1771363848523,-1252.0,0.00014564,2]
[405855197,1771363848532,-1000.0,0.00014706,2]
[405855198,1771363848542,-1000.0,0.00014706,2]
[405855199,1771363848552,-1000.0,0.00014706,2]
[405855200,1771363848563,-1000.0,0.00014706,2]
[405855201,1771363848572,-1000.0,0.00014706,2]
[405855202,1771363848583,-284.61,0.00014716,2]
[405855203,1771363848593,-184.6,0.00014789,2]
[405855204,1771363848602,-150.0,0.00014853,2]
[405855205,1771363848612,-176.05451458,0.000149,2]
[405855206,1771363848622,-176.05451457,0.000149,2]
[405855207,1771363848633,-176.05451457,0.000149,2]
[405855208,1771363848643,-3000.0,0.00014912,2]
[405855209,1771363848653,-1360.79622624,0.00014912,2]
[405855210,1771363848663,-2453.91707801,0.00014912,2]
[405855211,1771363848673,-9419.8,0.00014938,2]
[405855212,1771363848683,-173.355935,0.00014963,7]
[405855213,1771363848694,-1500.0,0.00014968,2]
[405855214,1771363848704,-1000.0,0.00014968,2]
[405855215,1771363848714,-1500.0,0.00014968,2]
[405855216,1771363848724,-1500.0,0.00014968,2]
[405855217,1771363848733,-1500.0,0.00014968,2]
[405855218,1771363848743,-504.47861685,0.00014968,2]
[405855219,1771363848753,-1500.0,0.00014968,2]
[405855220,1771363848763,-1000.0,0.00014968,2]
[405855221,1771363848773,-1097.87159044,0.00014968,2]
[405855222,1771363848783,-395.07222913,0.00014968,2]
[405855223,1771363848793,-1500.0,0.00014968,2]
[405855224,1771363848802,-1500.0,0.00014968,2]
[405855225,1771363848812,-501.69367829,0.00014968,2]
[405855226,1771363848822,-1500.0,0.00014968,2]
[405855227,1771363848832,-1501.26419244,0.00014968,2]
[405855228,1771363848842,-505.49608217,0.00014968,2]
[405855229,1771363848852,-715.83370402,0.00014968,2]
[405855230,1771363848862,-1597.03636758,0.00014968,2]
[405855231,1771363848872,-1512.37454404,0.00014968,2]
[405855232,1771363848882,-1500.0,0.00014968,2]
[405855233,1771363848892,-1500.0,0.00014968,2]
[405855234,1771363848902,-1500.0,0.00014968,2]
[405855235,1771363848912,-1500.0,0.00014968,2]
[405855236,1771363848922,-803.51620924,0.00014968,2]
[405855237,1771363848932,-200.0,0.00014978,2]
[405855238,1771363848942,-250.0,0.00015,2]
[405855239,1771363848952,-2055.50045313,0.00015,2]
[405855240,1771363848962,-8002.23365242,0.00015,2]
[405855241,1771363848971,-151.76907395,0.00015,2]
[405855242,1771363848981,-171.31028089,0.00015,5]
[405855243,1771363848991,-4479.21,0.00015068,2]
[405855244,1771363849002,-900.0,0.00015068,2]
[405855245,1771363849011,-200.0,0.00015187,2]
[405855246,1771363849022,-1000.0,0.00015251,2]
[405855247,1771363849032,-1517.64,0.000153,2]
[405855248,1771363849042,-509.61038486,0.000154,2]
[405855249,1771363849052,-1066.36814864,0.0001544,2]
[405855250,1771363849062,-3500.0,0.0001546,2]
[405855251,1771363849072,-500.0,0.00015516,2]
[405855252,1771363849082,-360.43974274,0.00015516,2]
[405855253,1771363849092,-1120.78233815,0.00015516,2]
[405855254,1771363849102,-2000.0,0.00015516,2]
[405855255,1771363849112,-2000.0,0.00015516,2]
[405855256,1771363849122,-386.21895781,0.00015516,2]
[405855257,1771363849132,-2000.0,0.00015516,2]
[405855258,1771363849142,-2000.0,0.00015516,2]
[405855259,1771363849153,-1929.20363046,0.00015516,2]
[405855260,1771363849163,-2000.0,0.00015516,2]
[405855261,1771363849173,-2000.0,0.00015516,2]
[405855262,1771363849183,-1219.64567907,0.00015516,2]
[405855263,1771363849193,-200.0,0.00015526,2]
[405855264,1771363849204,-6453.0,0.0001562,2]
[405855265,1771363849214,-5019.02576734,0.00015628,2]
[405855266,1771363849224,-596.47581986,0.00015723,2]
[405855267,1771363849234,-4479.21,0.00015753,2]
[405855268,1771363849244,-2245.73805852,0.00015807,2]
[405855269,1771363849254,-500.0,0.00015861,2]
[405855270,1771363849264,-500.0,0.00015861,2]
[405855271,1771363849274,-500.0,0.00015861,2]
[405855272,1771363849285,-586.00467181,0.00015861,2]
[405855273,1771363849298,-500.0,0.00015861,2]
[405855274,1771363849308,-500.0,0.00015861,2]
[405855275,1771363849319,-500.0,0.00015861,2]
[405855276,1771363849330,-500.0,0.00015861,2]
[405855277,1771363849341,-321.35543779,0.00015861,2]
[405855278,1771363849352,-5000.0,0.0001596,2]
[405855279,1771363849362,-173.57638878,0.00016,3]
[405855280,1771363849374,-160.0,0.00016,3]
[405855281,1771363849384,-418.83903334,0.00016,2]
[405855282,1771363849394,-276.734435,0.00016,2]
[405855283,1771363849405,-1494.73225771,0.00016008,2]
[405855284,1771363849416,-2129.0,0.00016026,2]
[405855285,1771363849426,-2500.0,0.00016064,2]
[405855286,1771363849709,-1787.66016397,0.00016064,2]
[405855287,1771363849720,-960.3517219,0.00016064,2]
[405855288,1771363849730,-2500.0,0.00016064,2]
[405855289,1771363849741,-1510.33829166,0.00016064,2]
[405855290,1771363849751,-2500.0,0.00016064,2]
[405855291,1771363849760,-2000.0,0.00016082,2]
[405855292,1771363849770,-256.96542133,0.00016198,2]
[405855293,1771363849780,-150.0,0.000162,2]
[405855294,1771363849790,-58370.16387893,0.000162,5]
[405855295,1771363849799,-15296.93137855,0.00016247,2]
[405855296,1771363849808,-200.0,0.0001634,2]
[405855297,1771363849818,-500.0,0.00016356,2]
[405855298,1771363849828,-500.0,0.00016356,2]
[405855299,1771363849838,-2835.0,0.000164,2]
[405855300,1771363849848,-1013.23,0.00016429,2]
[405855301,1771363849857,-546.97,0.00016429,2]
[405855302,1771363849867,-500.0,0.00016429,2]
[405855303,1771363849877,-1479.1,0.00016429,2]
[405855304,1771363849887,-1546.47,0.00016429,2]
[405855305,1771363849897,-516.5,0.00016429,2]
[405855306,1771363849907,-3354.94878458,0.00016429,2]
[405855307,1771363849917,-189.74,0.00016435,2]
[405855308,1771363849927,-2789.9,0.00016438,2]
[405855309,1771363849936,-887.51,0.00016438,2]
[405855310,1771363849947,-2378.0,0.00016438,2]
[405855311,1771363849956,-4479.21,0.00016438,2]
[405855312,1771363849966,-151.02975848,0.00016438,2]
[405855313,1771363849975,-900.0,0.00016438,2]
[405855314,1771363849984,-2378.0,0.00016493,2]
[405855315,1771363849994,-150.0,0.000165,2]
[405855316,1771363850004,-2378.0,0.00016548,2]
[405855317,1771363850017,-153.83,0.00016598,2]
[405855318,1771363850026,-361.51972399,0.000166,2]
[405855319,1771363850036,-2378.0,0.00016602,2]
[405855320,1771363850046,-1035.74923491,0.00016612,2]
[405855321,1771363850056,-457.49810709,0.00016612,2]
[405855322,1771363850065,-3000.0,0.00016612,2]
[405855323,1771363850075,-189.74,0.00016623,2]
[405855324,1771363850085,-2378.0,0.00016657,2]
[405855325,1771363850095,-1088.37215301,0.00016665,2]
[405855326,1771363850105,-473.31058807,0.00016668,2]
[405855327,1771363850115,-1066.36814864,0.0001667,2]
[405855328,1771363850125,-2378.0,0.00016712,2]
[405855329,1771363850135,-199.23,0.00016712,2]
[405855330,1771363850146,-5019.02576734,0.00016764,2]
[405855331,1771363850156,-2378.0,0.00016767,2]
[405855332,1771363850166,-150.0,0.000168,2]
[405855333,1771363850176,-2378.0,0.00016822,2]
[405855334,1771363850187,-153.83,0.0001684,2]
[405855335,1771363850196,-2378.0,0.00016876,2]
[405855336,1771363850206,-943.7211497,0.000169,2]
[405855337,1771363850216,-2378.0,0.00016931,2]
[405855338,1771363850226,-2378.0,0.00016986,2]
[405855339,1771363850236,-151.0,0.00016997,2]
[405855340,1771363850245,-300.0,0.00017,2]
[405855341,1771363850256,-1034718.3065828,0.00017,2]
[405855342,1771363850266,-445.585732,0.00017,2]
[405855343,1771363850275,-445.585732,0.00017,2]
[405855344,1771363850285,-445.585732,0.00017,2]
[405855345,1771363850298,-445.585732,0.00017,2]
[405855346,1771363850308,-2000.0,0.00017,2]
[405855347,1771363850318,-1000.0,0.00017,2]
[405855348,1771363850328,-1000.0,0.00017,2]
[405855349,1771363850339,-1000.0,0.00017,2]
[405855350,1771363850349,-1000.0,0.00017,2]
[405855351,1771363850359,-1000.0,0.00017,2]
[405855352,1771363850369,-1000.0,0.00017,2]
[405855353,1771363850379,-1000.0,0.00017,2]
[405855354,1771363850389,-1038.507706,0.00017,2]
[405855355,1771363850399,-1573.195363,0.00017,2]
[405855356,1771363850408,-1573.195363,0.00017,2]
[405855357,1771363850418,-1573.195363,0.00017,2]
[405855358,1771363850427,-1573.195363,0.00017,2]
[405855359,1771363850437,-151.0,0.00017,2]
[405855360,1771363850447,-151.0,0.00017,2]
[405855361,1771363850457,-276.993442,0.00017,2]
[405855362,1771363850467,-276.993442,0.00017,2]
[405855363,1771363850477,-276.993442,0.00017,2]
[405855364,1771363850487,-276.993442,0.00017,2]
[405855365,1771363850497,-222.568912,0.00017,2]
[405855366,1771363850507,-222.568912,0.00017,2]
[405855367,1771363850516,-222.568912,0.00017,2]
[405855368,1771363850528,-222.568912,0.00017,2]
[405855369,1771363850538,-151.0,0.00017,2]
[405855370,1771363850548,-2378.0,0.00017041,2]
[405855371,1771363850557,-166.11141928,0.00017056,2]
[405855372,1771363850567,-431.2849758,0.00017082,2]
[405855373,1771363850577,-250.0,0.00017082,2]
[405855374,1771363850587,-250.0,0.00017082,2]
[405855375,1771363850596,-250.0,0.00017082,2]
[405855376,1771363850606,-250.0,0.00017082,2]
[405855377,1771363850616,-250.0,0.00017082,2]
[405855378,1771363850627,-743.50770149,0.00017082,2]
[405855379,1771363850637,-250.0,0.00017082,2]
[405855380,1771363850647,-250.0,0.00017082,2]
[405855381,1771363850657,-250.0,0.00017082,2]
[405855382,1771363850667,-250.0,0.00017082,2]
[405855383,1771363850677,-500.0,0.00017082,2]
[405855384,1771363850687,-250.0,0.00017082,2]
[405855385,1771363850697,-500.0,0.00017082,2]
[405855386,1771363850706,-250.0,0.00017082,2]
[405855387,1771363850716,-151.0,0.00017082,2]
[405855388,1771363850726,-500.0,0.00017082,2]
[405855389,1771363850735,-250.0,0.00017082,2]
[405855390,1771363850745,-156.587,0.00017082,2]
[405855391,1771363850755,-500.0,0.00017082,2]
[405855392,1771363850764,-250.0,0.00017082,2]
[405855393,1771363850774,-162.380719,0.00017082,2]
[405855394,1771363850783,-500.0,0.00017082,2]
[405855395,1771363850793,-250.0,0.00017082,2]
[405855396,1771363850802,-250.0,0.00017082,2]
[405855397,1771363850812,-159.19814613,0.00017082,2]
[405855398,1771363850821,-500.0,0.00017082,2]
[405855399,1771363850831,-151.0,0.00017082,2]
[405855400,1771363850840,-500.0,0.00017082,2]
[405855401,1771363850849,-500.0,0.00017082,2]
[405855402,1771363850859,-500.0,0.00017082,2]
[405855403,1771363850868,-250.0,0.00017082,2]
[405855404,1771363850878,-500.0,0.00017082,2]
[405855405,1771363850887,-250.0,0.00017082,2]
[405855406,1771363850897,-500.0,0.00017082,2]
[405855407,1771363850906,-250.0,0.00017082,2]
[405855408,1771363850915,-500.0,0.00017082,2]
[405855409,1771363850925,-250.0,0.00017082,2]
[405855410,1771363850935,-500.0,0.00017082,2]
[405855411,1771363850944,-250.0,0.00017082,2]
[405855412,1771363850953,-500.0,0.00017082,2]
[405855413,1771363850963,-250.0,0.00017082,2]
[405855414,1771363850972,-174.61919141,0.00017082,2]
[405855415,1771363850982,-500.0,0.00017082,2]
[405855416,1771363850992,-250.0,0.00017082,2]
[405855417,1771363851002,-500.0,0.00017082,2]
[405855418,1771363851011,-3000.0,0.00017082,2]
[405855419,1771363851021,-500.0,0.00017082,2]
[405855420,1771363851031,-500.0,0.00017082,2]
[405855421,1771363851040,-3000.0,0.00017082,2]
[405855422,1771363851051,-3000.0,0.00017082,2]
[405855423,1771363851059,-500.0,0.00017082,2]
[405855424,1771363851069,-3000.0,0.00017082,2]
[405855425,1771363851078,-500.0,0.00017082,2]
[405855426,1771363851088,-3000.0,0.00017082,2]
[405855427,1771363851098,-3000.0,0.00017082,2]
[405855428,1771363851107,-3000.0,0.00017082,2]
[405855429,1771363851117,-2570.81608438,0.00017082,2]
[405855430,1771363851128,-250.0,0.00017082,2]
[405855431,1771363851137,-250.0,0.00017082,2]
[405855432,1771363851147,-250.0,0.00017082,2]
[405855433,1771363851157,-250.0,0.00017082,2]
[405855434,1771363851166,-250.0,0.00017082,2]
[405855435,1771363851176,-250.0,0.00017082,2]
[405855436,1771363851186,-250.0,0.00017082,2]
[405855437,1771363851196,-721.12765535,0.00017082,2]
[405855438,1771363851206,-250.0,0.00017082,2]
[405855439,1771363851216,-250.0,0.00017082,2]
[405855440,1771363851226,-250.0,0.00017082,2]
[405855441,1771363851236,-299.40346672,0.00017082,2]
[405855442,1771363851245,-693.3919763,0.00017082,2]
[405855443,1771363851255,-250.0,0.00017082,2]
[405855444,1771363851265,-250.0,0.00017082,2]
[405855445,1771363851275,-250.0,0.00017082,2]
[405855446,1771363851285,-250.0,0.00017082,2]
[405855447,1771363851297,-250.0,0.00017082,2]
[405855448,1771363851307,-250.0,0.00017082,2]
[405855449,1771363851317,-151.0,0.00017082,2]
[405855450,1771363851326,-250.0,0.00017082,2]
[405855451,1771363851337,-151.0,0.00017082,2]
[405855452,1771363851347,-250.0,0.00017082,2]
[405855453,1771363851357,-151.0,0.00017082,2]
[405855454,1771363851368,-250.0,0.00017082,2]
[405855455,1771363851381,-151.0,0.00017082,2]
[405855456,1771363851391,-250.0,0.00017082,2]
[405855457,1771363851401,-151.0,0.00017082,2]
[405855458,1771363851411,-250.0,0.00017082,2]
[405855459,1771363851421,-250.0,0.00017082,2]
[405855460,1771363851430,-151.0,0.00017082,2]
[405855461,1771363851440,-277.35679052,0.00017082,2]
[405855462,1771363851450,-250.0,0.00017082,2]
[405855463,1771363851460,-151.0,0.00017082,2]
[405855464,1771363851471,-250.0,0.00017082,2]
[405855465,1771363851481,-151.0,0.00017082,2]
[405855466,1771363851491,-250.0,0.00017082,2]
[405855467,1771363851501,-151.0,0.00017082,2]
[405855468,1771363851511,-250.0,0.00017082,2]
[405855469,1771363851521,-151.0,0.00017082,2]
[405855470,1771363851530,-151.0,0.00017082,2]
[405855471,1771363851540,-250.0,0.00017082,2]
[405855472,1771363851550,-250.0,0.00017082,2]
[405855473,1771363851560,-250.0,0.00017082,2]
[405855474,1771363851570,-250.0,0.00017082,2]
[405855475,1771363851583,-174.5920753,0.00017082,2]
[405855476,1771363851594,-250.0,0.00017082,2]
[405855477,1771363851604,-250.0,0.00017082,2]
[405855478,1771363851614,-250.0,0.00017082,2]
[405855479,1771363851625,-250.0,0.00017082,2]
[405855480,1771363851635,-250.0,0.00017082,2]
[405855481,1771363851645,-250.0,0.00017082,2]
[405855482,1771363851654,-250.0,0.00017082,2]
[405855483,1771363851664,-200.0,0.00017082,2]
[405855484,1771363851674,-184.99591854,0.00017082,2]
[405855485,1771363851684,-2378.0,0.00017096,2]
[405855486,1771363851694,-1226.14807661,0.00017096,2]
[405855487,1771363851704,-1000.0,0.00017097,2]
[405855488,1771363851714,-150.0,0.000171,2]
[405855489,1771363851724,-196837.22809,0.000171,2]
[405855490,1771363851733,-820.0,0.000171,2]
[405855491,1771363851743,-1000.0,0.00017101,2]
[405855492,1771363851753,-1000.0,0.00017112,2]
[405855493,1771363851763,-1000.0,0.00017123,2]